bitfinex/quotes_BTCUSD_20220105
["timestamp","ask_amount","ask_price","bid_price","bid_amount"]
[1641360056019,0.19135988,46281.0,46274.0,0.20804991]
[1641360056220,0.19135988,46281.0,46277.0,0.054025]
[1641360056868,0.19135988,46281.0,46275.0,0.1]
[1641360057067,0.19135988,46281.0,46275.0,0.05]
[1641360057266,0.19135988,46281.0,46274.0,0.054027]
[1641360058269,0.19135988,46281.0,46274.0,0.070027]
[1641360058569,0.24130692,46280.0,46274.0,0.066]
[1641360058770,0.00127089,46277.0,46274.0,0.066]
[1641360058969,0.00127089,46277.0,46274.0,0.016]
[1641360059469,0.00127089,46277.0,46268.0,0.0046]
[1641360059670,0.00127089,46277.0,46269.0,0.054033]
[1641360059869,0.19135988,46281.0,46268.0,0.0046]
[1641360060070,0.24539188,46281.0,46268.0,0.0046]
[1641360060270,0.24539188,46281.0,46269.0,0.017]
[1641360060519,0.24539188,46281.0,46275.0,0.00015424]
[1641360061318,0.2716127,46279.0,46275.0,0.00015424]
[1641360061718,0.24539188,46281.0,46275.0,0.00015424]
[1641360061917,0.24539188,46281.0,46275.0,0.00292506]
[1641360062119,0.2466163,46278.0,46275.0,0.01792506]
[1641360064020,0.34294018,46280.0,46275.0,0.00292506]
[1641360064271,0.34294018,46280.0,46275.0,0.01892506]
[1641360065070,0.19135988,46281.0,46275.0,0.01892506]
[1641360065471,0.19135988,46281.0,46275.0,0.00292506]
[1641360066173,0.19135988,46281.0,46275.0,0.01692506]
[1641360067376,0.19135988,46281.0,46275.0,0.00292506]
[1641360067876,0.19135988,46281.0,46275.0,0.00015424]
[1641360068117,0.19135988,46281.0,46275.0,0.01415424]
[1641360069324,0.24539188,46281.0,46275.0,0.01415424]
[1641360069619,0.355573,46280.0,46275.0,0.00015424]
[1641360069818,0.00127218,46277.0,46275.0,0.00015424]
[1641360070018,0.19135988,46281.0,46276.0,0.00273612]
[1641360070819,0.50736882,46280.0,46276.0,0.00273612]
[1641360071225,0.50736882,46280.0,46277.0,0.00023064]
[1641360071226,0.054034,46279.0,46277.0,0.00023064]
[1641360071422,0.58841178,46278.0,46277.0,0.00046128]
[1641360071622,0.23283878,46278.0,46277.0,0.00046128]
[1641360072270,0.23283878,46278.0,46277.0,0.01146128]
[1641360073869,0.47626635,46281.0,46277.0,0.01146128]
[1641360074071,0.47626635,46281.0,46277.0,0.00046128]
[1641360074271,0.19135988,46281.0,46277.0,0.01246128]
[1641360075521,0.24539188,46281.0,46277.0,0.00046128]
[1641360075923,0.054034,46280.0,46277.0,0.00046128]
[1641360076323,0.054034,46280.0,46277.0,0.00846128]
[1641360076525,0.108068,46280.0,46277.0,0.00846128]
[1641360076725,0.054034,46280.0,46277.0,0.00846128]
[1641360077323,0.10807,46280.0,46277.0,0.00846128]
[1641360077525,0.355573,46279.0,46277.0,0.00846128]
[1641360077723,0.054035,46279.0,46277.0,0.00846128]
[1641360078224,0.065035,46279.0,46277.0,0.00846128]
[1641360078523,0.119072,46279.0,46277.0,0.00846128]
[1641360079288,0.34303289,46279.0,46277.0,0.00846128]
[1641360079489,0.38607068,46279.0,46277.0,0.00046128]
[1641360080093,0.22530886,46278.0,46277.0,0.00046128]
[1641360080289,0.58088186,46278.0,46277.0,0.01046128]
[1641360081393,0.22530886,46278.0,46277.0,0.00046128]
[1641360081790,0.108072,46279.0,46277.0,0.00046128]
[1641360082193,0.108072,46279.0,46277.0,0.01246128]
[1641360083023,0.054035,46279.0,46277.0,0.01246128]
[1641360083624,0.054035,46279.0,46277.0,0.00046128]
[1641360084222,0.070035,46279.0,46277.0,0.00846128]
[1641360085522,0.054035,46279.0,46277.0,0.00046128]
[1641360085925,0.108073,46279.0,46277.0,0.00046128]
[1641360086324,0.108073,46279.0,46277.0,0.00746128]
[1641360086325,0.109073,46279.0,46277.0,0.00746128]
[1641360086769,0.39896175,46279.0,46277.0,0.00746128]
[1641360087369,0.39396175,46279.0,46277.0,0.00746128]
[1641360087572,0.39296175,46279.0,46277.0,0.00046128]
[1641360087770,0.34392375,46279.0,46277.0,0.00046128]
[1641360088170,0.34392375,46279.0,46277.0,0.01246128]
[1641360089176,0.22512657,46278.0,46277.0,0.01246128]
[1641360089573,0.34392375,46279.0,46277.0,0.00046128]
[1641360090174,0.39992375,46279.0,46277.0,0.00046128]
[1641360091626,0.28988875,46279.0,46277.0,0.00046128]
[1641360092226,0.30388875,46279.0,46277.0,0.00646128]
[1641360092626,0.30033405,46279.0,46277.0,0.00646128]
[1641360093228,0.35436805,46279.0,46277.0,0.00646128]
[1641360093427,0.34036805,46279.0,46277.0,0.00046128]
[1641360093628,0.054034,46279.0,46277.0,0.00046128]
[1641360094282,0.069034,46279.0,46277.0,0.00546128]
[1641360094874,0.39922725,46279.0,46277.0,0.00546128]
[1641360095475,0.38422725,46279.0,46277.0,0.00046128]
[1641360096276,0.05499,46278.0,46277.0,0.00646128]
[1641360097475,0.05499,46278.0,46277.0,0.00046128]
[1641360098320,0.05499,46278.0,46277.0,0.01346128]
[1641360099523,0.05499,46278.0,46277.0,0.00046128]
[1641360100326,0.05499,46278.0,46277.0,0.01346128]
[1641360101526,0.05499,46278.0,46277.0,0.00046128]
[1641360101972,0.05499,46278.0,46277.0,0.00645689]
[1641360102172,0.05499,46278.0,46277.0,0.04876128]
[1641360102375,0.05499,46278.0,46277.0,0.47504428]
[1641360102571,0.05499,46278.0,46277.0,1.7263512]
[1641360102771,0.05499,46278.0,46277.0,0.8163512]
[1641360103972,0.05499,46278.0,46277.0,0.81654932]
[1641360104172,0.05499,46278.0,46277.0,0.5602424]
[1641360104371,0.05499,46278.0,46277.0,0.85180145]
[1641360104573,0.05499,46278.0,46277.0,0.84680145]
[1641360105375,0.05499,46278.0,46277.0,1.67680145]
[1641360105624,0.05499,46278.0,46277.0,1.64880145]
[1641360106424,0.05499,46278.0,46277.0,1.67780145]
[1641360106623,0.05499,46278.0,46277.0,1.63280145]
[1641360107425,0.05499,46278.0,46277.0,0.80280145]
[1641360107629,0.05499,46278.0,46277.0,0.77380145]
[1641360108026,0.05499,46278.0,46277.0,0.82380145]
[1641360108226,0.05499,46278.0,46277.0,0.85380145]
[1641360108427,0.05499,46278.0,46277.0,1.30380145]
[1641360109475,0.05499,46278.0,46277.0,1.27380145]
[1641360110281,0.05499,46278.0,46277.0,1.30880145]
[1641360111576,0.05499,46278.0,46277.0,1.27380145]
[1641360111977,0.05499,46278.0,46277.0,0.82380145]
[1641360112376,0.05499,46278.0,46277.0,1.34180145]
[1641360114522,0.05450214,46278.0,46277.0,0.85180145]
[1641360114923,0.05450214,46278.0,46277.0,0.80350145]
[1641360115521,0.05450214,46278.0,46277.0,0.77550145]
[1641360116322,0.05450214,46278.0,46277.0,0.5389424]
[1641360116527,0.05450214,46278.0,46277.0,0.3832324]
[1641360116778,0.05450214,46278.0,46277.0,0.0276594]
[1641360117574,0.05450214,46278.0,46277.0,0.0006594]
[1641360117978,0.3710868,46278.0,46277.0,0.0006594]
[1641360118376,0.3710868,46278.0,46277.0,0.0636594]
[1641360119576,0.3710868,46278.0,46277.0,0.0006594]
[1641360120077,0.3710868,46278.0,46277.0,0.0001094]
[1641360120276,0.3710868,46278.0,46277.0,0.0621094]
[1641360122126,0.3710868,46278.0,46277.0,0.0001094]
[1641360122327,0.3710868,46278.0,46277.0,0.0611094]
[1641360123529,0.3710868,46278.0,46277.0,0.0001094]
[1641360123929,0.05450214,46278.0,46277.0,0.0001094]
[1641360124379,0.05450214,46278.0,46277.0,0.67535021]
[1641360124580,0.05450214,46278.0,46277.0,1.13092321]
[1641360125379,0.05450214,46278.0,46277.0,0.49092321]
[1641360125581,0.05450214,46278.0,46277.0,0.41092321]
[1641360125785,0.05450214,46278.0,46277.0,0.0501094]
[1641360126179,0.05450214,46278.0,46277.0,0.0001094]
[1641360126379,0.05450214,46278.0,46277.0,0.0271094]
[1641360127182,0.05450214,46278.0,46277.0,0.6871094]
[1641360127382,0.05450214,46278.0,46277.0,1.0426824]
[1641360127583,0.05450214,46278.0,46277.0,1.0156824]
[1641360128224,0.05450214,46278.0,46277.0,0.3556824]
[1641360128429,0.05450214,46278.0,46277.0,0.3896824]
[1641360129725,0.05450214,46278.0,46277.0,0.0501094]
[1641360129925,0.05450214,46278.0,46277.0,0.0001094]
[1641360130325,0.05450214,46278.0,46277.0,0.0301094]
[1641360131626,0.05450214,46278.0,46277.0,0.0001094]
[1641360132380,0.05450214,46278.0,46277.0,0.0751094]
[1641360132579,0.05450214,46278.0,46277.0,0.1251094]
[1641360133181,0.05450214,46278.0,46277.0,0.3451094]
[1641360133585,0.05450214,46278.0,46277.0,0.2701094]
[1641360134381,0.05450214,46278.0,46277.0,0.3011094]
[1641360135623,0.05450214,46278.0,46277.0,0.2701094]
[1641360136525,0.05450214,46278.0,46277.0,0.2991094]
[1641360137624,0.05450214,46278.0,46277.0,0.2701094]
[1641360138325,0.05450214,46278.0,46277.0,0.3001094]
[1641360139125,0.05450214,46278.0,46277.0,0.2501094]
[1641360139380,0.05450214,46278.0,46277.0,0.3001094]
[1641360139578,0.05450214,46278.0,46277.0,0.2701094]
[1641360140377,0.05450214,46278.0,46277.0,0.2991094]
[1641360141481,0.05450214,46278.0,46277.0,0.2992797]
[1641360141681,0.05450214,46278.0,46277.0,0.2702797]
[1641360142079,0.05450214,46278.0,46277.0,0.2202797]
[1641360142279,0.05450214,46278.0,46277.0,0.2702797]
[1641360142582,0.05450214,46278.0,46277.0,0.3402797]
[1641360143619,0.05450214,46278.0,46277.0,0.2702797]
[1641360144422,0.05450214,46278.0,46277.0,0.3422797]
[1641360145721,0.05450214,46278.0,46277.0,0.2702797]
[1641360146322,0.05450214,46278.0,46277.0,0.3002797]
[1641360147577,0.05450214,46278.0,46277.0,0.2702797]
[1641360148375,0.05450214,46278.0,46277.0,0.3212797]
[1641360148776,0.05450214,46278.0,46277.0,0.53748088]
[1641360148976,0.05450214,46278.0,46277.0,0.89305388]
[1641360149576,0.05450214,46278.0,46277.0,0.84205388]
[1641360150377,0.05450214,46278.0,46277.0,0.89205388]
[1641360151629,0.05450214,46278.0,46277.0,0.84205388]
[1641360152428,0.05450214,46278.0,46277.0,0.89005388]
[1641360153630,0.05450214,46278.0,46277.0,0.84205388]
[1641360154477,0.05450214,46278.0,46277.0,0.87205388]
[1641360156277,0.05450214,46278.0,46277.0,0.84205388]
[1641360156481,0.05450214,46278.0,46277.0,0.87205388]
[1641360157179,0.05450214,46278.0,46277.0,0.6558527]
[1641360157781,0.05450214,46278.0,46277.0,0.6258527]
[1641360158427,0.05450214,46278.0,46277.0,0.6798527]
[1641360159127,0.05450214,46278.0,46277.0,0.3242797]
[1641360159728,0.05450214,46278.0,46277.0,0.2702797]
[1641360160528,0.05450214,46278.0,46277.0,0.87741859]
[1641360161778,0.05450214,46278.0,46277.0,0.83841859]
[1641360161976,0.05450214,46278.0,46277.0,0.48284559]
[1641360162376,0.05450214,46278.0,46277.0,0.48918377]
[1641360162577,0.05450214,46278.0,46277.0,0.52218377]
[1641360163678,0.05450214,46278.0,46277.0,0.51218377]
[1641360163880,0.05450214,46278.0,46277.0,0.47918377]
[1641360164476,0.05450214,46278.0,46277.0,0.51418377]
[1641360165828,0.05450214,46278.0,46277.0,0.47918377]
[1641360166528,0.05450214,46278.0,46277.0,0.51218377]
[1641360166731,0.05450214,46278.0,46277.0,0.29961788]
[1641360167829,0.05450214,46278.0,46277.0,0.34961788]
[1641360168030,0.05450214,46278.0,46277.0,0.56183372]
[1641360168428,0.05450214,46278.0,46277.0,0.58683372]
[1641360169474,0.05450214,46278.0,46277.0,0.94240672]
[1641360169674,0.05450214,46278.0,46277.0,0.90940672]
[1641360169875,0.05450214,46278.0,46277.0,0.88440672]
[1641360170475,0.05450214,46278.0,46277.0,0.91140672]
[1641360171679,0.05450214,46278.0,46277.0,0.88440672]
[1641360171880,0.05450214,46278.0,46277.0,0.67219088]
[1641360172479,0.05450214,46278.0,46277.0,0.69819088]
[1641360173328,0.05450214,46278.0,46277.0,0.69828911]
[1641360173730,0.05450214,46278.0,46277.0,1.3676562]
[1641360174254,0.05450214,46278.0,46277.0,0.8876562]
[1641360174631,0.05450214,46278.0,46277.0,0.9096562]
[1641360175730,0.05450214,46278.0,46277.0,0.8876562]
[1641360176533,0.05450214,46278.0,46277.0,0.9076562]
[1641360177986,0.05450214,46278.0,46277.0,0.94961802]
[1641360178682,0.05450214,46278.0,46277.0,0.96861802]
[1641360179684,0.05450214,46278.0,46277.0,1.29861802]
[1641360179883,0.05450214,46278.0,46277.0,1.27961802]
[1641360180628,0.05450214,46278.0,46277.0,1.29761802]
[1641360181726,0.05450214,46278.0,46277.0,1.27961802]
[1641360182327,0.05450214,46278.0,46277.0,0.92961802]
[1641360182627,0.05450214,46278.0,46277.0,0.94861802]
[1641360182832,0.05450214,46278.0,46277.0,0.73325093]
[1641360183930,0.05450214,46278.0,46277.0,0.71425093]
[1641360184580,0.05450214,46278.0,46277.0,0.73425093]
[1641360185183,0.05450214,46278.0,46277.0,0.64425093]
[1641360185887,0.05450214,46278.0,46277.0,0.62425093]
[1641360186486,0.05450214,46278.0,46277.0,0.64425093]
[1641360186783,0.05450214,46278.0,46277.0,0.69425093]
[1641360187786,0.05450214,46278.0,46277.0,0.67425093]
[1641360188033,0.05450214,46278.0,46277.0,0.6327884]
[1641360188235,0.05450214,46278.0,46277.0,0.22037793]
[1641360188236,0.59627121,46278.0,46277.0,0.22037793]
[1641360188439,0.95312947,46278.0,46277.0,0.22037793]
[1641360188634,0.73307071,46278.0,46277.0,0.24737793]
[1641360189436,0.37749771,46278.0,46277.0,0.24737793]
[1641360189734,0.9782536,46278.0,46277.0,0.22037793]
[1641360190535,0.9782536,46278.0,46277.0,0.24537793]
[1641360190536,1.22755596,46278.0,46277.0,0.24537793]
[1641360191437,0.38649771,46278.0,46277.0,0.24537793]
[1641360191636,0.64200357,46278.0,46277.0,0.24537793]
[1641360191878,0.98857657,46278.0,46277.0,0.22037793]
[1641360192079,1.87793482,46278.0,46277.0,0.22037793]
[1641360192277,1.62242896,46278.0,46277.0,0.22037793]
[1641360192478,1.77242896,46278.0,46277.0,0.22037793]
[1641360192677,1.88142896,46278.0,46277.0,0.22037793]
[1641360192879,2.26013829,46278.0,46277.0,0.22037793]
[1641360193278,2.5969745,46278.0,46277.0,0.22037793]
[1641360194480,3.0079745,46278.0,46277.0,0.22037793]
[1641360194681,3.0199745,46278.0,46277.0,0.22037793]
[1641360195080,1.80020692,46278.0,46277.0,0.22037793]
[1641360195930,1.78820692,46278.0,46277.0,0.22037793]
[1641360196426,1.13304866,46278.0,46277.0,0.22037793]
[1641360196626,1.14504866,46278.0,46277.0,0.22037793]
[1641360197929,1.13304866,46278.0,46277.0,0.22037793]
[1641360198629,1.17904866,46278.0,46277.0,0.22037793]
[1641360199574,0.52050214,46278.0,46277.0,0.22037793]
[1641360199776,0.52050214,46278.0,46277.0,0.49543729]
[1641360199976,0.47450214,46278.0,46277.0,0.62595093]
[1641360200576,0.47450214,46278.0,46277.0,0.63895093]
[1641360200779,0.47450214,46278.0,46277.0,0.58995093]
[1641360201782,0.47450214,46278.0,46277.0,0.57595093]
[1641360202578,0.47450214,46278.0,46277.0,0.59295093]
[1641360203830,0.47450214,46278.0,46277.0,0.23737793]
[1641360204528,0.47450214,46278.0,46277.0,0.22037793]
[1641360204729,0.47450214,46278.0,46277.0,0.23937793]
[1641360205931,0.47450214,46278.0,46277.0,0.22037793]
[1641360206783,0.47450214,46278.0,46277.0,0.23937793]
[1641360207779,0.47450214,46278.0,46277.0,0.22037793]
[1641360208579,0.47450214,46278.0,46277.0,0.24437793]
[1641360209881,0.47450214,46278.0,46277.0,0.22037793]
[1641360210827,0.47450214,46278.0,46277.0,0.23737793]
[1641360211829,0.47450214,46278.0,46277.0,0.22037793]
[1641360212630,0.47450214,46278.0,46277.0,0.23837793]
[1641360214476,0.47450214,46278.0,46277.0,0.22037793]
[1641360214681,0.47450214,46278.0,46277.0,0.23837793]
[1641360216076,0.47450214,46278.0,46277.0,0.22037793]
[1641360216677,0.47450214,46278.0,46277.0,0.23937793]
[1641360217479,0.47450214,46278.0,46277.0,0.23995222]
[1641360217879,0.47450214,46278.0,46277.0,0.22095222]
[1641360218731,0.47450214,46278.0,46277.0,0.23995222]
[1641360219836,0.47450214,46278.0,46277.0,0.22095222]
[1641360220733,0.47450214,46278.0,46277.0,0.24095222]
[1641360221979,0.47450214,46278.0,46277.0,0.22095222]
[1641360222679,0.47450214,46278.0,46277.0,0.23995222]
[1641360223885,0.47450214,46278.0,46277.0,0.22095222]
[1641360224782,0.47450214,46278.0,46277.0,0.23995222]
[1641360226031,0.47450214,46278.0,46277.0,0.22095222]
[1641360226631,0.47450214,46278.0,46277.0,0.23995222]
[1641360227935,0.47450214,46278.0,46277.0,0.22095222]
[1641360228633,0.47450214,46278.0,46277.0,0.23995222]
[1641360229886,0.47450214,46278.0,46277.0,0.22095222]
[1641360230287,0.5857038,46278.0,46277.0,0.22095222]
[1641360230485,0.9412768,46278.0,46277.0,0.22095222]
[1641360230686,0.9482768,46278.0,46277.0,0.23595222]
[1641360231185,0.4827038,46278.0,46277.0,0.23595222]
[1641360232184,0.4757038,46278.0,46277.0,0.22095222]
[1641360232785,0.4867038,46278.0,46277.0,0.22095222]
[1641360233834,0.48550214,46278.0,46277.0,0.22095222]
[1641360234034,0.47450214,46278.0,46277.0,0.22095222]
[1641360234834,0.48950214,46278.0,46277.0,0.22095222]
[1641360236034,0.47450214,46278.0,46277.0,0.22095222]
[1641360236886,0.48550214,46278.0,46277.0,0.22295222]
[1641360237993,0.47450214,46278.0,46277.0,0.22095222]
[1641360238688,0.48850214,46278.0,46277.0,0.22095222]
[1641360240091,0.47450214,46278.0,46277.0,0.22095222]
[1641360240743,0.48750214,46278.0,46277.0,0.22095222]
[1641360241946,1.07366933,46278.0,46277.0,0.22095222]
[1641360242548,0.47450214,46278.0,46277.0,0.22095222]
[1641360242748,0.48750214,46278.0,46277.0,0.22095222]
[1641360243351,1.0873824,46278.0,46277.0,0.22095222]
[1641360243950,1.0743824,46278.0,46277.0,0.22095222]
[1641360244585,0.47450214,46278.0,46277.0,0.22095222]
[1641360244780,0.48650214,46278.0,46277.0,0.22295222]
[1641360246181,0.47450214,46278.0,46277.0,0.22095222]
[1641360246381,1.07430943,46278.0,46277.0,0.22095222]
[1641360246780,1.08630943,46278.0,46277.0,0.22495222]
[1641360248035,1.07430943,46278.0,46277.0,0.22095222]
[1641360248738,0.48850214,46278.0,46277.0,0.22095222]
[1641360249038,1.20750277,46278.0,46277.0,0.22095222]
[1641360250039,1.19350277,46278.0,46277.0,0.22095222]
[1641360250839,1.20850277,46278.0,46277.0,0.22095222]
[1641360252085,1.19350277,46278.0,46277.0,0.22095222]
[1641360252886,1.20550277,46278.0,46277.0,0.22195222]
[1641360253691,0.48650214,46278.0,46277.0,0.22195222]
[1641360254099,0.47450214,46278.0,46277.0,0.22095222]
[1641360254889,0.48950214,46278.0,46277.0,0.22695222]
[1641360255936,0.48950214,46278.0,46277.0,0.2234382]
[1641360256136,0.47450214,46278.0,46277.0,0.2174382]
[1641360256838,0.48450214,46278.0,46277.0,0.2264382]
[1641360258139,0.47450214,46278.0,46277.0,0.2174382]
[1641360258843,0.48750214,46278.0,46277.0,0.2254382]
[1641360260689,0.47450214,46278.0,46277.0,0.2174382]
[1641360260889,0.48650214,46278.0,46277.0,0.2254382]
[1641360262092,0.47450214,46278.0,46277.0,0.2174382]
[1641360262893,0.48750214,46278.0,46277.0,0.2254382]
[1641360264144,0.47450214,46278.0,46277.0,0.2174382]
[1641360264738,0.47450214,46278.0,46277.0,0.2244382]
[1641360264938,0.48850214,46278.0,46277.0,0.2244382]
[1641360266142,0.47450214,46278.0,46277.0,0.2174382]
[1641360266788,0.48850214,46278.0,46277.0,0.2254382]
[1641360268585,0.47450214,46278.0,46277.0,0.2174382]
[1641360268785,0.51650214,46278.0,46277.0,0.2244382]
[1641360269986,0.47450214,46278.0,46277.0,0.2174382]
[1641360270839,0.48950214,46278.0,46277.0,0.2264382]
[1641360271041,1.08872918,46278.0,46277.0,0.2264382]
[1641360271439,0.48950214,46278.0,46277.0,0.2264382]
[1641360272140,0.47450214,46278.0,46277.0,0.2174382]
[1641360272941,0.49150214,46278.0,46277.0,0.2224382]
[1641360274143,0.47450214,46278.0,46277.0,0.2174382]
[1641360274792,0.48750214,46278.0,46277.0,0.2254382]
[1641360275491,0.48750214,46278.0,46277.0,0.44762526]
[1641360275696,0.2866749,46278.0,46277.0,0.49762526]
[1641360275994,0.013,46278.0,46277.0,0.54592526]
[1641360276194,0.59906847,46279.0,46278.0,0.01719]
[1641360276394,0.59906847,46279.0,46278.0,0.06549]
[1641360276797,0.59906847,46279.0,46278.0,0.08349]
[1641360276996,0.19135988,46281.0,46279.0,0.1080402]
[1641360277299,0.19135988,46281.0,46280.0,0.0483]
[1641360278141,0.19135988,46281.0,46280.0,0.27326457]
[1641360278543,0.19135988,46281.0,46280.0,0.32326457]
[1641360278944,0.19135988,46281.0,46280.0,0.34026457]
[1641360280145,0.19135988,46281.0,46280.0,0.32326457]
[1641360280846,0.61135988,46281.0,46280.0,0.29026457]
[1641360281048,0.61135988,46281.0,46280.0,0.0653]
[1641360281447,0.61135988,46281.0,46280.0,0.017]
[1641360282095,0.61135988,46281.0,46278.0,0.00273641]
[1641360282696,0.61135988,46281.0,46277.0,0.2174382]
[1641360282896,0.61135988,46281.0,46278.0,0.048]
[1641360283498,0.61135988,46281.0,46279.0,0.00051942]
[1641360284899,0.61135988,46281.0,46279.0,0.03051942]
[1641360286138,0.61135988,46281.0,46279.0,0.00051942]
[1641360286939,0.61135988,46281.0,46279.0,0.04051942]
[1641360287643,0.61135988,46281.0,46279.0,0.03930134]
[1641360288239,0.61135988,46281.0,46278.0,0.00325585]
[1641360288640,0.61059652,46281.0,46278.0,0.00325585]
[1641360288843,0.61059652,46281.0,46278.0,0.03825585]
[1641360290088,0.61059652,46281.0,46278.0,0.00325585]
[1641360290988,0.61059652,46281.0,46278.0,0.02025585]
[1641360292189,0.61059652,46281.0,46278.0,0.00325585]
[1641360292688,0.61059652,46281.0,46278.0,0.00051942]
[1641360293044,0.61059652,46281.0,46278.0,0.01851942]
[1641360294238,0.61059652,46281.0,46278.0,0.00051942]
[1641360294838,0.61059652,46281.0,46278.0,0.01651942]
[1641360295041,0.61059652,46281.0,46279.0,0.00057042]
[1641360296140,0.59906847,46284.0,46280.0,0.0483]
[1641360296340,0.59906847,46284.0,46283.0,0.6039]
[1641360296541,0.59906847,46284.0,46283.0,0.89976646]
[1641360296795,0.73135485,46286.0,46283.0,0.89976646]
[1641360296796,0.01235422,46286.0,46284.0,0.00505314]
[1641360296992,0.01235422,46286.0,46285.0,0.1092123]
[1641360297194,0.01235422,46286.0,46285.0,0.10744612]
[1641360297396,0.01235422,46286.0,46285.0,0.152312]
[1641360298194,0.44537489,46291.0,46285.0,0.152312]
[1641360298498,0.457729,46291.0,46288.0,0.054013]
[1641360298694,0.457729,46291.0,46289.0,0.0483]
[1641360299496,0.457729,46291.0,46289.0,0.102314]
[1641360300295,0.44537489,46291.0,46289.0,2.03902269]
[1641360300543,0.44537489,46291.0,46290.0,0.355573]
[1641360300844,0.44537489,46291.0,46289.0,0.102314]
[1641360301049,0.44537489,46291.0,46289.0,0.115314]
[1641360302243,0.44537489,46291.0,46289.0,0.102314]
[1641360303044,0.44537489,46291.0,46289.0,0.114314]
[1641360303244,0.44537489,46291.0,46290.0,0.21182397]
[1641360303446,0.67865753,46295.0,46290.0,0.21182397]
[1641360304046,0.42,46295.0,46290.0,0.21182397]
[1641360304894,0.42,46295.0,46290.0,0.27783697]
[1641360305794,0.42,46295.0,46290.0,0.27915307]
[1641360306198,0.42,46295.0,46290.0,0.26715307]
[1641360306596,0.42,46295.0,46290.0,0.31715307]
[1641360306797,0.42,46295.0,46290.0,0.53715307]
[1641360307096,0.42,46295.0,46290.0,0.54815307]
[1641360308339,0.42,46295.0,46290.0,0.53715307]
[1641360308941,0.42,46295.0,46290.0,0.54915307]
[1641360309338,0.42,46295.0,46291.0,0.054012]
[1641360309939,0.00127988,46301.0,46291.0,0.054012]
[1641360310142,0.8409,46304.0,46292.0,0.0483]
[1641360310341,0.8409,46304.0,46297.0,0.054004]
[1641360310342,0.42,46304.0,46297.0,0.054004]
[1641360310741,0.42,46304.0,46298.0,0.2128561]
[1641360310940,0.42,46304.0,46298.0,0.2611561]
[1641360311140,0.42,46304.0,46298.0,0.3111561]
[1641360312090,0.42,46304.0,46298.0,0.3651591]
[1641360312291,0.42,46304.0,46299.0,0.00575736]
[1641360312491,0.42,46304.0,46300.0,0.05360679]
[1641360312691,0.42,46304.0,46301.0,0.24280327]
[1641360312892,0.42,46304.0,46302.0,0.0483]
[1641360313093,0.42,46304.0,46303.0,0.23155657]
[1641360313691,0.42,46309.0,46303.0,0.23801272]
[1641360313896,0.42,46309.0,46304.0,0.00687512]
[1641360314090,0.42,46309.0,46304.0,0.00728762]
[1641360314293,0.42,46309.0,46304.0,0.00582193]
[1641360314593,0.42,46309.0,46304.0,0.00718281]
[1641360314792,0.42,46309.0,46304.0,0.00739111]
[1641360314994,0.42,46309.0,46304.0,0.01396046]
[1641360315192,0.42,46309.0,46304.0,0.0150507]
[1641360315393,0.42,46309.0,46304.0,0.01342655]
[1641360315641,0.42,46309.0,46304.0,0.01499861]
[1641360315841,0.42,46309.0,46304.0,0.01404348]
[1641360316041,0.42,46309.0,46304.0,0.061996]
[1641360316240,0.42,46309.0,46305.0,0.21681757]
[1641360317046,0.71900063,46307.0,46305.0,0.22781757]
[1641360317244,0.71900063,46307.0,46305.0,0.011]
[1641360317645,0.71900063,46307.0,46305.0,0.2772693]
[1641360318246,0.71900063,46307.0,46305.0,0.2122753]
[1641360318448,0.6017915,46307.0,46306.0,0.8383]
[1641360318646,0.6017915,46307.0,46306.0,1.1340956]
[1641360318847,0.6017915,46307.0,46306.0,1.1880896]
[1641360319051,0.71900063,46309.0,46306.0,0.4100896]
[1641360319052,0.6017915,46309.0,46306.0,0.4100896]
[1641360319294,0.6017915,46310.0,46306.0,0.3560956]
[1641360319891,0.42,46311.0,46307.0,0.053991]
[1641360319892,1.0217915,46311.0,46307.0,0.053991]
[1641360320093,1.0217915,46311.0,46308.0,0.0483]
[1641360320291,1.0217915,46311.0,46309.0,0.21259652]
[1641360320691,0.6017915,46310.0,46309.0,0.26259652]
[1641360321091,0.6017915,46310.0,46309.0,0.32758652]
[1641360321696,0.6017915,46310.0,46309.0,0.37588652]
[1641360322192,1.0217915,46311.0,46309.0,0.36488652]
[1641360322392,1.0217915,46311.0,46310.0,0.21357865]
[1641360322593,0.42,46311.0,46310.0,0.31586246]
[1641360323044,0.42,46311.0,46310.0,0.63286246]
[1641360323240,0.42,46311.0,46310.0,0.33286246]
[1641360323841,0.37,46311.0,46310.0,0.3341471]
[1641360324843,0.37,46311.0,46310.0,0.3171471]
[1641360325044,0.37,46311.0,46310.0,0.11756845]
[1641360325442,0.37,46311.0,46310.0,0.32813969]
[1641360325650,0.37,46311.0,46310.0,0.11756845]
[1641360325843,0.365,46311.0,46310.0,0.06358464]
[1641360326244,0.365,46311.0,46310.0,0.04958464]
[1641360326445,0.365,46311.0,46310.0,0.00128464]
[1641360326645,0.820573,46311.0,46310.0,0.00128464]
[1641360326913,1.94058538,46311.0,46310.0,0.00128464]
[1641360327105,2.27966721,46311.0,46310.0,0.01528464]
[1641360327704,2.03965483,46311.0,46310.0,0.01528464]
[1641360328306,2.03965483,46311.0,46310.0,0.00128464]
[1641360330406,0.108014,46309.0,46304.0,0.22]
[1641360330643,0.054009,46306.0,46304.0,0.22]
[1641360330939,1.38226324,46305.0,46304.0,0.22]
[1641360332243,1.73783624,46305.0,46304.0,0.22]
[1641360332844,1.83783624,46305.0,46304.0,0.22]
[1641360333244,0.64027745,46305.0,46304.0,0.22]
[1641360333445,1.85946524,46305.0,46304.0,0.22]
[1641360333844,2.21503824,46305.0,46304.0,0.22]
[1641360334045,0.99585045,46305.0,46304.0,0.22]
[1641360334491,1.85946524,46305.0,46304.0,0.22]
[1641360335093,1.85946524,46305.0,46304.0,0.22064741]
[1641360335293,1.75946524,46305.0,46304.0,0.22129482]
[1641360335690,1.51830859,46305.0,46304.0,0.22129482]
[1641360335891,0.2991208,46305.0,46304.0,0.22129482]
[1641360336491,0.52205693,46305.0,46304.0,0.22129482]
[1641360336893,0.62205693,46305.0,46304.0,0.22129482]
[1641360337695,0.97762993,46305.0,46304.0,0.22129482]
[1641360338139,0.62205693,46305.0,46304.0,0.22129482]
[1641360338941,0.97762993,46305.0,46304.0,0.22129482]
[1641360340846,1.69844116,46305.0,46304.0,0.22129482]
[1641360342091,0.97762993,46305.0,46304.0,0.22129482]
[1641360343091,0.62205693,46305.0,46304.0,0.22129482]
[1641360343691,0.32293613,46305.0,46304.0,0.22129482]
[1641360343892,1.54215923,46305.0,46304.0,0.22129482]
[1641360344091,1.89773223,46305.0,46304.0,0.22129482]
[1641360348441,1.54215923,46305.0,46304.0,0.22129482]
[1641360348642,1.3192231,46305.0,46304.0,0.22129482]
[1641360349886,1.2192231,46305.0,46304.0,0.22129482]
[1641360350296,1.2192231,46305.0,46304.0,0.05926943]
[1641360350692,1.84341201,46305.0,46304.0,0.05926943]